Cogmind - Beta 12 @@@ ROGUE MODE // 2023.04.06 @ 16:09:55 Player: Momo Result: Self-destructed Performance ------------- Evolutions (2) 1000 Regions Visited (7) 1400 Robots Destroyed (46) 230 Value Destroyed (949) 949 Prototype IDs (32) 640 Alien Tech Used (0) 0 Bonus (506) 506 TOTAL SCORE: 4725 Bonus ------- Follower Combat Kills 206 Aligned with FarCom 300 Cogmind --------- Core Integrity 511/550 Matter 300/300 Energy 142/142 System Corruption 0% Temperature Cool (0) Movement Treading (82) Location -8/Recycling Parts ------- > --- POWER (1) -------- Nuclear-Ion Core > --- PROPULSION (4) --- Treaded VTOL-Armored Exoskeleton > --- UTILITY (2) ------ Armored Scrap Engine > --- WEAPON (4) ------- Guided Plasma Cannon Advanced Assault Cannon Hpw. Charged Construct/G Shotgun Ballistic Construct/G > --- INVENTORY (5) ---- Large Storage Unit AWS/Thermal Peak State ------------ > --- POWER ------------ Nuclear-Ion Core > --- PROPULSION ------- Treaded VTOL-Armored Exoskeleton > --- UTILITY ---------- Armored Scrap Engine > --- WEAPON ----------- Guided Plasma Cannon Advanced Assault Cannon Hpw. Charged Construct/G Shotgun Ballistic Construct/G > --- INVENTORY -------- Large Storage Unit AWS/Thermal [Rating: 52] Favorites ----------- Power Light Ion Engine Engine Light Ion Engine Power Core Constructs Propulsion Armored Wheel Treads Constructs Wheel Armored Wheel Utility Humpback Device Scrap Engine Storage Humpback Weapon Advanced Assault Cannon Energy Gun EM Shotgun Energy Cannon Guided Plasma Cannon Ballistic Gun Constructs Ballistic Cannon Advanced Assault Cannon Launcher Advanced EMP Blaster Build | -11 -10 -10 -10 -9 -8 -8 -8 ------- Run | Jun Mat Min Exi Min Mat Sto Rec Slots Evolved 4 | . . . . . 4 . . Power . | . . . . . . . . Propulsion 2 | . . . . . 2 . . Utility . | . . . . . . . . Weapon 2 | . . . . . 2 . . Parts Attached 36 | 6 4 2 1 2 16 2 3 Power 3 | 1 . 1 . . . 1 . Engine 2 | 1 . 1 . . . . . Core 1 | . . . . . . 1 . Reactor . | . . . . . . . . Propulsion 7 | 2 . . . . 4 1 . Treads . | . . . . . . . . Leg . | . . . . . . . . Wheel 7 | 2 . . . . 4 1 . Hover . | . . . . . . . . Flight . | . . . . . . . . Utility 5 | 1 2 . 1 . . . 1 Device 2 | . 1 . . . . . 1 Storage 3 | 1 1 . 1 . . . . Processor . | . . . . . . . . Hackware . | . . . . . . . . Protection . | . . . . . . . . Artifact . | . . . . . . . . Weapon 21 | 2 2 1 . 2 12 . 2 Energy Gun 6 | 1 2 . . 2 1 . . Energy Cannon 2 | . . . . . 1 . 1 Ballistic Gun 2 | 1 . . . . 1 . . Ballistic Cannon 6 | . . . . . 6 . . Launcher 5 | . . 1 . . 3 . 1 Special Weapon . | . . . . . . . . Impact Weapon . | . . . . . . . . Slashing Weapon . | . . . . . . . . Piercing Weapon . | . . . . . . . . Special Melee Weapon . | . . . . . . . . Unidentified Prototypes 5 | . . . . . 5 . . Parts Lost 7 | . . 2 . 3 2 . . Power 1 | . . 1 . . . . . Propulsion 2 | . . . . 1 1 . . Utility . | . . . . . . . . Weapon 4 | . . 1 . 2 1 . . Highest Loss Streak 3 | . . 1 . 3 1 . . To Critical Strikes . | . . . . . . . . Average Slot Usage (%) 80 | . 98 100 94 66 81 90 75 Engine 5 | . 14 14 14 14 9 5 . Core 4 | . . . . . . 3 8 Treads 1 | . . . . . . . 2 Wheel 25 | . 28 28 28 18 34 36 20 Device 4 | . 11 14 9 . . . 5 Storage 7 | . 14 14 13 14 9 9 3 Energy Gun 5 | . 14 18 14 17 2 . 1 Energy Cannon 1 | . . . . . . . 2 Ballistic Gun 3 | . 13 . . . . . 5 Ballistic Cannon 18 | . . . . . 23 36 21 Launcher 3 | . . 9 14 1 2 . 2 Naked Turns . | . . . . . . . . Heaviest Build 229 | 11 30 30 209 209 227 229 229 Greatest Support 94 | 32 32 32 32 32 52 48 94 Greatest Overweight (x) 12 | . . . 6 12 12 4 4 Average Overweight (x) 2 | . . . 1 9 4 4 2 Largest Inventory Capacity 35 | 8 15 15 35 35 35 35 35 Average Capacity 23 | 6 14 15 21 35 35 35 17 Most Carried 35 | 4 15 15 19 22 35 35 35 Average Carried 18 | 1 7 14 14 20 24 34 15 Final Capacity 35 | 8 15 15 35 35 35 35 5 Final Carried 35 | 4 15 14 19 21 35 35 3 Scrap Engine Consumption 55 | . . . . . . . 55 Constructs Created 4 | . . . . . . . 4 Constructs Modified 18 | . . . . . . . 18 Class Distribution -------------------- 32% | Hauler-Skirmisher 24% | Construct 24% | Hauler-Mutant 14% | Mutant 4% | Skirmisher Dominant Class ---------------- Mutant | -10/Materials Mutant | -10/Mines Mutant | -10/Exiles Hauler-Mutant | -9/Mines Hauler-Skirmisher | -8/Materials Hauler-Mutant | -8/Storage Construct | -8/Recycling Resources | -11 -10 -10 -10 -9 -8 -8 -8 ----------- Run | Jun Mat Min Exi Min Mat Sto Rec Matter Collected 1765 | 248 44 40 60 80 292 411 590 Remotely . | . . . . . . . . Salvage Created 1993 | . 98 135 . 33 434 260 1033 Parts 85 | . 4 6 . . 29 14 32 Haulers Intercepted 3 | . . . . . 3 . . Recyclers Shooed 9 | . . . . . . . 9 Parts Field Recycled . | . . . . . . . . Retrieved Matter . | . . . . . . . . Parts Self-Destructed . | . . . . . . . . Prevented . | . . . . . . . . Kills | -11 -10 -10 -10 -9 -8 -8 -8 ------- Run | Jun Mat Min Exi Min Mat Sto Rec Combat Hostiles Destroyed 23 | . 2 7 . 1 8 3 2 Guns 3 | . 2 . . 1 . . . Cannons 10 | . . . . . 5 3 2 AOE 10 | . . 7 . . 3 . . Classes Destroyed 8 | . 1 2 . . 4 1 . Worker 1 | . . 1 . . . . . Builder 2 | . . . . . 1 . 1 Hauler 3 | . . . . . 3 . . Recycler 17 | . . . . . 1 2 14 Swarmer 6 | . . 3 . . 3 . . Grunt 9 | . 2 4 . . 3 . . Sentry 6 | . . . . . 2 2 2 Hunter 1 | . . . . . . 1 . Best Kill Streak 4 | . 2 3 . 1 4 4 3 Combat Bots Only 3 | . 2 3 . 1 3 2 1 Max Kills in Single Turn 3 | . 1 3 . 1 2 1 1 Gunslinging . | . . . . . . . . Exploded 3 | . . 3 . . 2 . . Melee . | . . . . . . . . Uniques/NPCs Destroyed 1 | . . . . 1 . . . YI-UF0 (-9/Mines) Combat | -11 -10 -10 -10 -9 -8 -8 -8 -------- Run | Jun Mat Min Exi Min Mat Sto Rec Damage Taken 1157 | . 80 155 . 435 189 254 44 Core 231 | . . 10 . 182 . 12 27 Absorbed by Shields . | . . . . . . . . Core Remaining (%) 61 | 100 . . . 23 . . . Volleys Fired 78 | . 4 8 . 4 14 14 34 Largest 4 | . 2 2 . 2 4 4 4 Hottest 192 | . 60 90 . 90 192 192 192 Shots Fired 204 | . 8 11 . 6 50 35 94 Gun 20 | . 8 6 . 6 . . . Cannon 173 | . . . . . 48 35 90 Launcher 11 | . . 5 . . 2 . 4 Special . | . . . . . . . . Kinetic 177 | . 4 . . . 48 35 90 Thermal 4 | . 4 . . . . . . Explosive 7 | . . 5 . . 2 . . Electromagnetic 16 | . . 6 . 6 . . 4 Robot Hit Streak 11 | . 8 11 . 7 11 4 5 Robot Miss Streak 9 | . . 1 . 3 4 9 7 Penetration Max . | . . . . . . . . Secondary Targets . | . . . . . . . . Shots Hit Robots 86 | . 8 6 . 5 19 10 38 Core Hits 57 | . 5 14 . 3 15 6 14 Critical Kills 1 | . 1 . . . . . . Critical Parts Destroyed . | . . . . . . . . Critical Strikes 5 | . 1 . . . 3 . 1 Destroy 1 | . 1 . . . . . . Blast 4 | . . . . . 3 . 1 Melee Attacks . | . . . . . . . . Impact . | . . . . . . . . Slashing . | . . . . . . . . Piercing . | . . . . . . . . Sneak Attacks . | . . . . . . . . Combat Hostiles . | . . . . . . . . Follow-up Attacks . | . . . . . . . . Damage Inflicted 2840 | . 95 554 . 59 792 264 1076 Guns 233 | . 95 79 . 59 . . . Cannons 1902 | . . . . . 666 264 972 Explosions 705 | . . 475 . . 126 . 104 Melee . | . . . . . . . . Ramming . | . . . . . . . . Kinetic 1954 | . 52 . . . 666 264 972 Thermal 154 | . 43 111 . . . . . Explosive 490 | . . 364 . . 126 . . Electromagnetic 242 | . . 79 . 59 . . 104 Impact . | . . . . . . . . Slashing . | . . . . . . . . Piercing . | . . . . . . . . Highest Corruption . | . . . . . . . . Average Corruption . | . . . . . . . . Corruption Purged . | . . . . . . . . Corruption Blocked . | . . . . . . . . Overload Shots . | . . . . . . . . Overflow Damage 101 | . . . . . . . 101 Projectiles 83 | . . . . . . . 83 Explosions 18 | . . . . . . . 18 Melee . | . . . . . . . . Knockbacks 12 | . . . . . 6 3 3 Impact . | . . . . . . . . Kinetic 12 | . . . . . 6 3 3 Secondary . | . . . . . . . . Self-Inflicted Damage 56 | . . 44 . . . . 12 Shots 3 | . . 2 . . . . 1 Rammed . | . . . . . . . . Targets Rammed . | . . . . . . . . Kicked . | . . . . . . . . Crushed . | . . . . . . . . Highest Temperature 459 | . 21 132 . 64 459 316 456 Average Temperature 129 | . 14 59 . 39 153 137 136 Received Heat Transfer 171 | . 42 48 . . 72 . 9 Effects 2 | . . . . . . . 2 Shutdowns 1 | . . . . . . . 1 Energy Bleed 1 | . . . . . . . 1 Siege Activations . | . . . . . . . . Robots Corrupted . | . . . . . . . . Combat Hostiles . | . . . . . . . . Parts Fried . | . . . . . . . . Impact Corruptions . | . . . . . . . . Robots Melted . | . . . . . . . . Combat Hostiles . | . . . . . . . . Parts Melted . | . . . . . . . . Heat Transferred 200 | . 100 100 . . . . . Parts Sabotaged . | . . . . . . . . Parts Stolen . | . . . . . . . . Parts Stripped . | . . . . . . . . Power Chain Reactions 3 | . . 2 . . . . 1 Missiles Intercepted . | . . . . . . . . Alert | -11 -10 -10 -10 -9 -8 -8 -8 ------- Run | Jun Mat Min Exi Min Mat Sto Rec Peak Influence 435 | . 50 192 . . 301 435 222 Initial 91 | . . 19 . . . 58 91 Average 74 | . 17 121 . . 147 233 39 Maximum Alert Level 2 | . . . . . 1 2 1 Low Security (%) 85 | 100 100 100 . 100 62 29 97 Level 1 13 | . . . . . 37 56 2 Level 2 1 | . . . . . . 13 . Level 3 . | . . . . . . . . Level 4 . | . . . . . . . . Level 5 . | . . . . . . . . High Security . | . . . . . . . . Max Security . | . . . . . . . . Squads Dispatched . | . . . . . . . . Investigation . | . . . . . . . . Extermination . | . . . . . . . . Reinforcement . | . . . . . . . . Assault . | . . . . . . . . Garrison . | . . . . . . . . Intercept . | . . . . . . . . Searches Triggered . | . . . . . . . . Construction Impeded . | . . . . . . . . Haulers Reinforced . | . . . . . . . . Active Scanning Responses . | . . . . . . . . Cargo Convoy Interrupts . | . . . . . . . . Stealth | -11 -10 -10 -10 -9 -8 -8 -8 --------- Run | Jun Mat Min Exi Min Mat Sto Rec Distress Signals 5 | . . . . . 2 3 . Communications Jammed . | . . . . . . . . Distress Signals . | . . . . . . . . Times Spotted 33 | . 2 6 . 1 13 10 1 Peak Tracking Total 6 | . 2 3 . 1 6 4 1 Tactical Retreats 2 | . . . . . . 2 . Traps | -11 -10 -10 -10 -9 -8 -8 -8 ------- Run | Jun Mat Min Exi Min Mat Sto Rec Traps Triggered . | . . . . . . . . Indirectly . | . . . . . . . . Trap Hack Attempts . | . . . . . . . . Triggered . | . . . . . . . . Disarmed . | . . . . . . . . Reprogrammed . | . . . . . . . . Reused . | . . . . . . . . Traps Extracted . | . . . . . . . . Installed . | . . . . . . . . Triggered . | . . . . . . . . Machines | -11 -10 -10 -10 -9 -8 -8 -8 ---------- Run | Jun Mat Min Exi Min Mat Sto Rec Machines Disabled 6 | . . . . . 4 2 . Max in Single Turn 1 | . . . . . 1 1 . Machines Repaired . | . . . . . . . . Machines Sabotaged . | . . . . . . . . Overloaded Fab Kills . | . . . . . . . . Hacking | -11 -10 -10 -10 -9 -8 -8 -8 --------- Run | Jun Mat Min Exi Min Mat Sto Rec Machines Accessed 3 | . . . 1 . . 2 . Terminals 2 | . . . . . . 2 . Fabricators . | . . . . . . . . Repair Stations . | . . . . . . . . Recycling Units . | . . . . . . . . Scanalyzers . | . . . . . . . . Garrison Access . | . . . . . . . . Total Hacks 4 | . . . 1 . . 3 . Successful 2 | . . . 1 . . 1 . Failed 2 | . . . . . . 2 . Catastrophic . | . . . . . . . . Database Lockouts . | . . . . . . . . Manual 2 | . . . 1 . . 1 . Terminals 3 | . . . . . . 3 . Fabricators . | . . . . . . . . Repair Stations . | . . . . . . . . Recycling Units . | . . . . . . . . Scanalyzers . | . . . . . . . . Garrison Access . | . . . . . . . . Terminal Hacks 2 | . . . 1 . . 1 . Open Door 1 | . . . . . . 1 . EX-Prototype ID Bank 1 | . . . 1 . . . . Fabricator Hacks . | . . . . . . . . Repair Station Hacks . | . . . . . . . . Recycling Unit Hacks . | . . . . . . . . Scanalyzer . | . . . . . . . . Garrison Access Hacks . | . . . . . . . . Unauthorized Hacks . | . . . . . . . . Terminals . | . . . . . . . . Fabricators . | . . . . . . . . Repair Stations . | . . . . . . . . Recycling Units . | . . . . . . . . Scanalyzers . | . . . . . . . . Garrison Access . | . . . . . . . . Data Cores Recovered . | . . . . . . . . Used . | . . . . . . . . Hacking Detections 1 | . . . . . . 1 . Full Trace Events . | . . . . . . . . Feedback Events . | . . . . . . . . Feedback Blocked . | . . . . . . . . Robot Schematics Acquired . | . . . . . . . . Robots Built . | . . . . . . . . Authchips . | . . . . . . . . Time . | . . . . . . . . Total Robot Build Rating . | . . . . . . . . Part Schematics Acquired . | . . . . . . . . Parts Built . | . . . . . . . . Authchips . | . . . . . . . . Time . | . . . . . . . . Total Part Build Rating . | . . . . . . . . Parts Repaired . | . . . . . . . . Time . | . . . . . . . . Parts Recycled . | . . . . . . . . Recycled Matter . | . . . . . . . . Retrieved Matter . | . . . . . . . . Retrieved Components . | . . . . . . . . Parts Scanalyzed . | . . . . . . . . Part Schematics Acquired . | . . . . . . . . Parts Damaged . | . . . . . . . . Bothacking | -11 -10 -10 -10 -9 -8 -8 -8 ------------ Run | Jun Mat Min Exi Min Mat Sto Rec Used RIF Installer . | . . . . . . . . Robots Hacked . | . . . . . . . . Non-combat . | . . . . . . . . Combat . | . . . . . . . . Robot Hacks Applied . | . . . . . . . . Relay Couplers Released . | . . . . . . . . Fabnet Peak Effective % . | . . . . . . . . Robots Rewired . | . . . . . . . . Allies Hacked . | . . . . . . . . Hacks Repelled . | . . . . . . . . Allies | -11 -10 -10 -10 -9 -8 -8 -8 -------- Run | Jun Mat Min Exi Min Mat Sto Rec Total Allies 1 | . . . . . . 1 . Largest Group 1 | . . . . . . 1 1 Highest-Rated Group 100 | . . . . . . 100 100 Highest-Rated Ally 100 | . . . . . . 100 100 Total Orders . | . . . . . . . . Ally Attacks 15 | . . . . . . 13 2 Total Damage 619 | . . . . . . 542 77 Kills 6 | . . . . . . 5 1 Allies Corrupted . | . . . . . . . . Allies Melted . | . . . . . . . . Intel | -11 -10 -10 -10 -9 -8 -8 -8 ------- Run | Jun Mat Min Exi Min Mat Sto Rec Robot Analysis Total . | . . . . . . . . Derelict Logs Recovered 1 | . . 1 . . . . . Drone Launches . | . . . . . . . . Drone Recoveries . | . . . . . . . . Exploration | -11 -10 -10 -10 -9 -8 -8 -8 ------------- Run | Jun Mat Min Exi Min Mat Sto Rec Turns Passed 4165 | 62 171 130 301 370 509 467 2155 Spaces Moved 1995 | 56 133 109 245 134 250 259 809 Core 13 | 13 . . . . . . . Treads 258 | . . . . . . . 258 Legs . | . . . . . . . . Wheels 1724 | 43 133 109 245 134 250 259 551 Hover . | . . . . . . . . Flight . | . . . . . . . . Fastest Speed 50 | 50 100 100 100 190 150 150 82 Average Speed 147 | 88 100 100 115 248 155 150 156 Slowest Speed 280 | 100 100 100 190 280 280 150 219 Overloaded Moves . | . . . . . . . . Propulsion Burnouts . | . . . . . . . . Robots Hopped . | . . . . . . . . Cave-ins Triggered . | . . . . . . . . Exploration Rate (%) 36 | 3 30 36 60 48 32 45 34 Regions Visited 7 Branch Regions 5 Pre-discovered Areas . | . . . . . . . . Known Exits Taken . | . . . . . . . . Unknown Exits Taken 7 | 1 1 1 1 1 1 1 . Scrap Searched 2 | . . . . 2 . . . Spaces Dug 1 | . . . . . . 1 . Terrain Destroyed 112 | . . 18 . . 32 16 46 Melee . | . . . . . . . . Projectile 75 | . . . . . 15 16 44 AOE 37 | . . 18 . . 17 . 2 Terrain Rammed . | . . . . . . . . Walls Destroyed . | . . . . . . . . Machines Disabled . | . . . . . . . . Actions | -11 -10 -10 -10 -9 -8 -8 -8 --------- Run | Jun Mat Min Exi Min Mat Sto Rec Total 3081 | 65 162 119 264 166 339 319 1647 Wait 839 | . 8 . . 24 29 17 761 Move 1988 | 55 132 108 244 133 249 258 809 Hop . | . . . . . . . . Pick Up 72 | 4 12 1 15 3 22 15 . Fast Attach 13 | 6 2 . 1 . 3 . 1 Attach 16 | . 1 2 . 1 10 1 1 Detach 4 | . . . . . 4 . . Swap 8 | . 1 . . 1 4 1 1 Drop 63 | . 2 . 4 . 4 13 40 Fire 78 | . 4 8 . 4 14 14 34 Melee . | . . . . . . . . Ram . | . . . . . . . . Kick . | . . . . . . . . Crush . | . . . . . . . . Escape Stasis . | . . . . . . . . Rewire . | . . . . . . . . Trap . | . . . . . . . . Miscellaneous . | . . . . . . . . Route ------- -11/Junkyard -10/Materials -10/Mines -10/Exiles -9/Mines -8/Materials -8/Storage -8/Recycling History --------- Turn | Location | Event 4 | -11/Junkyard | Discovered new exit (range 16) 63 | -11/Junkyard | Entered Materials 200 | -10/Materials | Discovered new exit (range 16) 234 | -10/Materials | Entered Mines 270 | -10/Mines | Assembled infested the area 316 | -10/Mines | Build established: Mutant 354 | -10/Mines | Learned Materials stockpile data 360 | -10/Mines | Deemed a non-threat by the Exiles lab entrance 360 | -10/Mines | Discovered new exit (range 5) 364 | -10/Mines | Entered Exiles 388 | -10/Exiles | Met 8R-AWN 405 | -10/Exiles | Met EX-HEX 433 | -10/Exiles | Met EX-BIN 451 | -10/Exiles | Aligned with FarCom system 452 | -10/Exiles | Given EX-Vault access code 475 | -10/Exiles | Opened EX-Vault 482 | -10/Exiles | Found AWS/Thermal 485 | -10/Exiles | Found Gui. Plasma Cannon 506 | -10/Exiles | Warned to stay clear of 0b10 Research branches 535 | -10/Exiles | Met EX-DEC 644 | -10/Exiles | Discovered new exit (range 14) 665 | -10/Exiles | Stole two prototypes: AWS/Thermal, Gui. Plasma Cannon 665 | -10/Exiles | Entered Mines 737 | -9/Mines | A weapon hastily lodged in a ceiling crevice suddenly fell to the ground 785 | -9/Mines | Core integrity fell below 50% 792 | -9/Mines | Destroyed YI-UF0 821 | -9/Mines | Lost 3 parts (1n2w) 861 | -9/Mines | Discovered new exit (range 16) 869 | -9/Mines | Build established: Hauler-Mutant 1035 | -9/Mines | Entered Materials 1035 | -8/Materials | Evolved 4 slots: Propulsion x2, Weapon x2 1330 | -8/Materials | Discovered new exit (range 6) 1482 | -8/Materials | Build established: Hauler-Skirmisher 1544 | -8/Materials | Entered Storage 1807 | -8/Storage | Met 01-MTF 2004 | -8/Storage | Discovered new exit (range 4) 2011 | -8/Storage | Entered Recycling 2011 | -8/Recycling | Accompanied by 1 ally (01-MTF) 2016 | -8/Recycling | 01-MTF left 2920 | -8/Recycling | Found Scrap Engine 3426 | -8/Recycling | Build established: Construct 4166 | -8/Recycling | Self-destructed Last Messages --------------- Renamed Wheeled Armored Exoskeleton. 03959_ Scrap Engine modifies Wheeled Armored Exoskeleton: Support -22. 03987_ Arm. Scrap Engine consumes Flak Cannon. 04020_ Scrap Engine modifies Hpw. KE Construct/G: Critical +4/Burn, Min Damage +14, Recoil -2 Renamed Hpw. Ballistic Beam Construct/C. 04049_ Arm. Scrap Engine consumes Prototype Energy Gun. 04057_ Arm. Scrap Engine consumes Flak Cannon. 04087_ Scrap Engine modifies Hpw. Ballistic Beam Construct/C: Max Integrity +40, Min Damage -15, Range +2, Max Damage -2, Energy Cost +15, -Critical Renamed Hpw. Charged Construct/G. 04094_ Arm. Scrap Engine consumes Prototype Flight Unit. 04110_ Arm. Scrap Engine consumes Arm. Treads. 04153_ Scrap Engine modifies Wheeled Armored Exoskeleton: Time/Move -78, Support +23 Renamed Treaded VTOL-Armored Exoskeleton. 04154_ Arm. Scrap Engine consumes Arm. Treads. 04165_ Arm. Scrap Engine consumes Prototype Flight Unit. Map ----- +----------------------------------------------------+ | | | | | | | | | | | | | | | | | | | | | | | | | | | ##?????????????????#########????????????????? | | ]#???????????????###= "##%##???????????????? | | ]#################"# "##%%###?????????????? | | % %! % ! ####??????????? | | !*! =! !!%! ! " #??????????? | | *= = *! %! % % " ##??????????? | | ####+#########+######+##+########???????????? | | ?? #??# % ###! ! !!!###########?????? | | #??# %#?# !! ! + #?????? | | #?## %!#?# !! ###### #?????? | | ###"!%% ### ]] !#????# #?????? | | ## "% "## ! #????# #?????? | | # #"% "## @ #????# #?????? | | ###" ### ###### ####??? | | ## "%%% =#?# ! + #??? | | #### #### "* #?#] ]! ###### #??? | | ???##???###% #?##########????# #??? | | ?????????## !% % #???????????????# ##?? | | ?????????#" % *#???????????????# "#?? | | ?????????##%%!] #????????######## %#?? | | ??########"""############?# !##?? | | #?# %#??? | | ### #??? | | #??? | | """"" ####+##+####??? | | ?????""""""" #?????????????? | | ??????" """ #######?????????????? | | ?????? #???????????????????? | | ???? #???????????????????? | | ????? #???????????????????? | | ???? ###+#+#???????????????????? | | ???? +?????????????????????????? | | ????#####"Y"#"Y"###?????????????????????????? | | ????????#"""#"""#???????????????????????????? | | ????????????#####???????????????????????????? | | ????????????????????????????????????????????? | | ????????????????????????????????????????????? | +----------------------------------------------------+ Best States ------------- Heat Dissipation 31 Energy Generation 14 Energy Capacity 160 Matter Stores 300 Matter Capacity 300 Sight Range 16 Terrain Scan Density 10 Evasion (%) 43 Recoil Reduction 4 Item Schematics ----------------- None Robot Schematics ------------------ None Fabricated ------------ Nothing Alien Tech Used ----------------- None Achievements -------------- None Challenges ------------ None Game ------ Seed SuperchargedMiniLog Manual? 1 Play Time 00:25:34 Cumulative 423.7 hours Start 2023.04.06 @ 13:54:19 End 2023.04.06 @ 16:09:55 Sessions 1 Manual Loads 0 Difficulty Rogue Special Mode None Game No. 199 Rogue 195 Adventurer 0 Explorer 4 Win Type - Total 24 Types 8/1/2/5/1/2/3/1/1 Lore% 86 Gallery% 88 Achievement% 80 Wizard Run 0 Options --------- ASCII 0 Keyboard 0 Movement Mouse Keybinds 0 Fullscreen 1 Font 18/SmallcapsGlow Map View 76x50 Tactical HUD 1 Map Filters NONE Filters NONE Steam 1 RUN: 3e5cca09-41d5-4eaa-870f-dd52f7baaf24